[Event "7. Arber-Senioren-Cup 2019"]
[Site "Bodenmais"]
[Date "2019.08.04"]
[Round "9.1"]
[White "Lorenc, Tomas"]
[Black "Koehler, Gerhard"]
[Result "0-1"]
[ECO "A15"]
[WhiteElo "2158"]
[BlackElo "2197"]
[Annotator "NA"]
[PlyCount "56"]
[EventDate "2019.07.27"]
[EventType "swiss"]
[EventCountry "GER"]
[SourceTitle "playchess.com"]
[Source "ChessBase"]
[SourceQuality "1"]
[TimeControl "60/7800+30:0"]

1. c4 {[%emt 0:06:24]} Nf6 {[%emt 0:00:00]} 2. g3 {[%emt 0:00:12]} g6 {[%emt 0:00:00]} 3. Bg2 {[%emt 0:01:36]} Bg7 {[%emt 0:00:00]} 4. Nc3 {[%emt 0:01:54]} O-O {[%emt 0:00:06]} 5. e4 {[%emt 0:00:37]} d6 {[%emt 0:00:25]} 6. Nge2 {[%emt 0:00:09]} c5 {[%emt 0:02:18]} 7. O-O {[%emt 0:02:44]} Nc6 {[%emt 0:00:59]} 8. d3 {[%emt 0:01:37]} Ne8 {[%emt 0:03:41]} 9. Be3 {[%emt 0:06:20]} Nc7 {[%emt 0:02:43]} 10. Qd2 {[%emt 0:02:08]} Ne6 {[%emt 0:00:41]} 11. Bh6 {[%emt 0:03:39]} Rb8 {[%emt 0:02:09]} 12. Bxg7 {[%emt 0:00:55]} Kxg7 {[%emt 0:00:11]} 13. f4 {[%emt 0:07:00]} Ned4 {[%emt 0:00:48]} 14. f5 {[%emt 0:06:08]} a6 {[%emt 0:06:32]} 15. g4 {[%emt 0:17:44]} Bd7 {[%emt 0:18:16]} 16. h4 {[%emt 0:09:45]} f6 {[%emt 0:08:34]} 17. Ng3 {[%emt 0:07:00]} e6 {[%emt 0:03:48]} 18. Rf2 {[%emt 0:04:33]} Ne5 {[%emt 0:03:00]} 19. fxg6 {[%emt 0:05:09]} hxg6 {[%emt 0:03:14]} 20. Rf4 {[%emt 0:01:07]} Rh8 {[%emt 0:05:55]} 21. Raf1 {[%emt 0:08:20]} Rxh4 {[%emt 0:05:03]} 22. Qf2 {[%emt 0:01:15]} Nxd3 {[%emt 0:03:37]} 23. Qe3 {[%emt 0:03:07]} Nxf4 {[%emt 0:02:13]} 24. Qxf4 {[%emt 0:00:07]} Qe7 {[%emt 0:00:28]} 25. e5 {[%emt 0:00:56]} dxe5 {[%emt 0:01:44]} 26. Qe3 {[%emt 0:00:43]} Rxg4 {[%emt 0:01:10]} 27. Nce4 {[%emt 0:00:19]} Rf8 {[%emt 0:02:15]} 28. Nf2 {[%emt 0:03:06]} Rxg3 {[%emt 0:00:29]} 0-1

[Event "7. Arber-Senioren-Cup 2019"]
[Site "Bodenmais"]
[Date "2019.08.04"]
[Round "9.3"]
[White "Pirrot, Dieter"]
[Black "Meckel, Helmut"]
[Result "1-0"]
[ECO "C02"]
[WhiteElo "2315"]
[BlackElo "1804"]
[Annotator "NA"]
[PlyCount "69"]
[EventDate "2019.07.27"]
[EventType "swiss"]
[EventCountry "GER"]
[SourceTitle "playchess.com"]
[Source "ChessBase"]
[SourceQuality "1"]
[TimeControl "60/7800+30:0"]

1. e4 {[%emt 0:00:00]} e6 {[%emt 0:05:36]} 2. d4 {[%emt 0:00:00]} d5 {[%emt 0:00:26]} 3. e5 {[%emt 0:00:40]} c5 {[%emt 0:00:17]} 4. c3 {[%emt 0:00:08]} Nc6 {[%emt 0:00:19]} 5. Nf3 {[%emt 0:00:08]} Bd7 {[%emt 0:07:51]} 6. Bd3 {[%emt 0:01:30]} cxd4 {[%emt 0:00:34]} 7. cxd4 {[%emt 0:00:08]} Qb6 {[%emt 0:05:27]} 8. O-O {[%emt 0:00:20]} Nxd4 {[%emt 0:01:07]} 9. Nbd2 {[%emt 0:00:24]} Bc5 {[%emt 0:09:38]} 10. b4 {[%emt 0:01:53]} Nxf3+ {[%emt 0:02:27]} 11. Qxf3 {[%emt 0:00:23]} Bd4 {[%emt 0:01:52]} 12. Qg3 {[%emt 0:00:10]} Bxa1 {[%emt 0:01:13]} 13. Qxg7 {[%emt 0:00:10]} Bxe5 {[%emt 0:00:17]} 14. Qxe5 {[%emt 0:00:07]} f6 {[%emt 0:00:14]} 15. Qh5+ {[%emt 0:00:05]} Kf8 {[%emt 0:03:56]} 16. Nb3 {[%emt 0:04:59]} Be8 {[%emt 0:01:57]} 17. Qh4 {[%emt 0:08:25]} e5 {[%emt 0:02:14]} 18. Nc5 {[%emt 0:09:45]} Rc8 {[%emt 0:14:53]} 19. Be3 {[%emt 0:06:07]} d4 {[%emt 0:01:58]} 20. Bd2 {[%emt 0:01:38]} Rxc5 {[%emt 0:10:27]} 21. bxc5 {[%emt 0:00:23]} Qxc5 {[%emt 0:02:47]} 22. Rc1 {[%emt 0:06:32]} Qe7 {[%emt 0:01:41]} 23. Rc8 {[%emt 0:03:52]} Kg7 {[%emt 0:01:26]} 24. Qg3+ {[%emt 0:07:42]} Bg6 {[%emt 0:01:17]} 25. Bf5 {[%emt 0:14:41]} Nh6 {[%emt 0:18:30]} 26. Bxh6+ {[%emt 0:00:24]} Kxh6 {[%emt 0:00:08]} 27. Rxh8 {[%emt 0:00:43]} Bxf5 {[%emt 0:00:07]} 28. Rg8 {[%emt 0:00:45]} Qf7 {[%emt 0:00:37]} 29. Qh4+ {[%emt 0:00:16]} Qh5 {[%emt 0:00:30]} 30. Qxf6+ {[%emt 0:00:11]} Bg6 {[%emt 0:00:16]} 31. Qg7+ {[%emt 0:02:09]} Kg5 {[%emt 0:00:05]} 32. Qxe5+ {[%emt 0:00:15]} Kh6 {[%emt 0:00:14]} 33. Qg7+ {[%emt 0:00:41]} Kg5 {[%emt 0:00:08]} 34. Qxd4 {[%emt 0:03:44]} Qe2 {[%emt 0:00:40]} 35. Qe3+ {[%emt 0:02:54]} 1-0

[Event "7. Arber-Senioren-Cup 2019"]
[Site "Bodenmais"]
[Date "2019.08.04"]
[Round "9.4"]
[White "Godoj, Veit"]
[Black "Pribyl, Josef"]
[Result "1/2-1/2"]
[ECO "A45"]
[WhiteElo "1995"]
[BlackElo "2234"]
[Annotator "ChessBase"]
[PlyCount "99"]
[EventDate "2019.07.27"]
[EventType "swiss"]
[EventCountry "GER"]
[SourceTitle "playchess.com"]
[Source "ChessBase"]
[SourceQuality "1"]
[TimeControl "60/7800+30:0"]

1. d4 {[%emt 0:00:00]} Nf6 {[%emt 0:00:00]} 2. Bg5 {[%emt 0:00:00]} b6 {[%emt 0:00:00]} 3. Nd2 {[%emt 0:00:00]} c5 {[%emt 0:00:11]} 4. e3 {[%emt 0:02:23]} Bb7 {[%emt 0:00:07]} 5. c3 {[%emt 0:01:15]} e6 {[%emt 0:00:28]} 6. Ngf3 {[%emt 0:00:55]} Be7 {[%emt 0:00:02]} 7. Bd3 {[%emt 0:06:17]} d6 {[%emt 0:00:01]} 8. Qe2 {[%emt 0:05:14]} h6 {[%emt 0:01:14]} 9. Bxf6 {[%emt 0:01:36]} Bxf6 {[%emt 0:00:03]} 10. O-O {[%emt 0:05:23]} Nd7 {[%emt 0:01:54]} 11. Be4 {[%emt 0:00:26]} d5 {[%emt 0:01:11]} 12. Bd3 {[%emt 0:00:01]} a6 {[%emt 0:00:26]} 13. Rad1 {[%emt 0:04:08]} O-O {[%emt 0:00:25]} 14. Bb1 {[%emt 0:04:07]} Qe7 {[%emt 0:12:30]} 15. Qd3 {[%emt 0:08:17]} g6 {[%emt 0:00:05]} 16. e4 {[%emt 0:00:17]} cxd4 {[%emt 0:00:45]} 17. cxd4 {[%emt 0:01:14]} dxe4 {[%emt 0:08:14]} 18. Nxe4 {[%emt 0:00:17]} Bg7 {[%emt 0:00:40]} 19. Rfe1 {[%emt 0:06:51]} Rfd8 {[%emt 0:00:05]} 20. Qe3 {[%emt 0:07:34]} Rac8 {[%emt 0:05:14]} 21. Qf4 {[%emt 0:11:58]} Nf6 {[%emt 0:00:46]} 22. h4 {[%emt 0:03:13]} Nxe4 {[%emt 0:04:56]} 23. Bxe4 {[%emt 0:00:12]} Bxe4 {[%emt 0:00:26]} 24. Qxe4 {[%emt 0:03:19]} Qd6 {[%emt 0:05:04]} 25. a3 {[%emt 0:08:28]} Qd5 {[%emt 0:00:50]} 26. Qf4 {[%emt 0:01:20]} Qb3 {[%emt 0:07:08]} 27. Rd2 {[%emt 0:05:21]} Rc2 {[%emt 0:15:29]} 28. Rxc2 {[%emt 0:13:04]} Qxc2 {[%emt 0:00:01]} 29. b4 {[%emt 0:01:37]} b5 {[%emt 0:12:02]} 30. Rc1 {[%emt 0:10:41]} Qb3 {[%emt 0:02:47]} 31. Qc7 {[%emt 0:00:48]} Qd5 {[%emt 0:01:48]} 32. Ne5 {[%emt 0:01:46]} Rf8 {[%emt 0:04:21]} 33. Nd7 {[%emt 0:04:01]} Re8 {[%emt 0:00:13]} 34. Ne5 {[%emt 0:00:15]} Bxe5 {[%emt 0:02:53]} 35. dxe5 {[%emt 0:00:02]} Kg7 {[%emt 0:00:51]} 36. Rc6 {[%emt 0:04:01]} Qd1+ {[%emt 0:02:38]} 37. Kh2 {[%emt 0:00:10]} Qd4 {[%emt 0:00:29]} 38. Kg1 {[%emt 0:00:25]} Ra8 {[%emt 0:09:59]} 39. Rb6 {[%emt 0:03:43]} Qa1+ {[%emt 0:06:23]} 40. Kh2 {[%emt 0:00:01]} Qxa3 {[%emt 0:00:01]} 41. Qe7 {[%emt 0:05:06]} Qa2 {[%emt 0:02:26]} 42. Qf6+ {[%emt 0:00:39]} Kg8 {[%emt 0:00:02]} 43. h5 {[%emt 0:00:12]} gxh5 {[%emt 0:09:53]} 44. Qxh6 {[%emt 0:01:20]} Qxf2 {[%emt 0:02:18]} 45. Qg5+ {[%emt 0:00:47]} Kf8 {[%emt 0:02:57]} 46. Qh6+ {[%emt 0:00:07]} Ke8 {[%emt 0:00:59]} 47. Qh8+ {[%emt 0:00:43]} Kd7 {[%emt 0:00:05]} 48. Rb7+ {[%emt 0:00:05]} Kc6 {[%emt 0:00:18]} 49. Qxa8 {[%emt 0:00:14]} Qh4+ {[%emt 0:00:38]} 50. Kg1 {[%emt 0:00:44]} 1/2-1/2

[Event "7. Arber-Senioren-Cup 2019"]
[Site "Bodenmais"]
[Date "2019.08.04"]
[Round "9.5"]
[White "Glaessl, Matthias"]
[Black "Nickl, Klaus"]
[Result "1-0"]
[ECO "C10"]
[WhiteElo "2148"]
[BlackElo "1988"]
[Annotator "NA"]
[PlyCount "89"]
[EventDate "2019.07.27"]
[EventType "swiss"]
[EventCountry "GER"]
[SourceTitle "playchess.com"]
[Source "ChessBase"]
[SourceQuality "1"]
[TimeControl "60/7800+30:0"]

1. e4 {[%emt 0:00:00]} e6 {[%emt 0:00:00]} 2. d4 {[%emt 0:00:00]} d5 {[%emt 0:00:00]} 3. Nc3 {[%emt 0:00:00]} dxe4 {[%emt 0:00:09]} 4. Nxe4 {[%emt 0:00:00]} Nd7 {[%emt 0:00:10]} 5. g3 {[%emt 0:00:09]} Ngf6 {[%emt 0:00:26]} 6. Nxf6+ {[%emt 0:00:11]} Nxf6 {[%emt 0:00:10]} 7. Bg2 {[%emt 0:00:02]} e5 {[%emt 0:02:46]} 8. Qe2 {[%emt 0:00:11]} Qxd4 {[%emt 0:00:46]} 9. Nf3 {[%emt 0:00:02]} Qe4 {[%emt 0:01:38]} 10. Qxe4 {[%emt 0:00:29]} Nxe4 {[%emt 0:00:11]} 11. Nxe5 {[%emt 0:00:02]} Nd6 {[%emt 0:02:29]} 12. O-O {[%emt 0:01:40]} Be7 {[%emt 0:06:08]} 13. Re1 {[%emt 0:04:05]} Be6 {[%emt 0:14:02]} 14. Nd3 {[%emt 0:07:48]} Bf6 {[%emt 0:25:39]} 15. Bh3 {[%emt 0:14:46]} O-O-O {[%emt 0:04:55]} 16. Bxe6+ {[%emt 0:00:06]} fxe6 {[%emt 0:00:12]} 17. Rxe6 {[%emt 0:00:10]} Nc4 {[%emt 0:01:03]} 18. Re4 {[%emt 0:01:19]} Na3 {[%emt 0:01:15]} 19. Re2 {[%emt 0:03:41]} Nxc2 {[%emt 0:00:25]} 20. Rxc2 {[%emt 0:00:04]} Rxd3 {[%emt 0:00:11]} 21. Bf4 {[%emt 0:00:04]} c6 {[%emt 0:02:01]} 22. Re1 {[%emt 0:00:09]} Rhd8 {[%emt 0:01:05]} 23. Kg2 {[%emt 0:00:06]} g5 {[%emt 0:10:39]} 24. Re6 {[%emt 0:08:35]} gxf4 {[%emt 0:04:53]} 25. Rxf6 {[%emt 0:00:04]} fxg3 {[%emt 0:00:14]} 26. fxg3 {[%emt 0:00:06]} a5 {[%emt 0:03:46]} 27. Rf7 {[%emt 0:04:15]} Rd2+ {[%emt 0:00:41]} 28. Rf2 {[%emt 0:00:07]} Rxc2 {[%emt 0:03:02]} 29. Rxc2 {[%emt 0:00:01]} Kc7 {[%emt 0:00:14]} 30. Kf3 {[%emt 0:00:07]} b5 {[%emt 0:00:18]} 31. Kf4 {[%emt 0:00:07]} Kb6 {[%emt 0:00:53]} 32. Kg5 {[%emt 0:01:16]} c5 {[%emt 0:03:55]} 33. Kh6 {[%emt 0:00:26]} Rd7 {[%emt 0:00:43]} 34. h4 {[%emt 0:02:53]} c4 {[%emt 0:05:09]} 35. g4 {[%emt 0:01:25]} Kc5 {[%emt 0:09:21]} 36. h5 {[%emt 0:00:14]} Rd4 {[%emt 0:10:35]} 37. Rg2 {[%emt 0:00:15]} b4 {[%emt 0:03:29]} 38. Kxh7 {[%emt 0:00:15]} c3 {[%emt 0:00:24]} 39. bxc3 {[%emt 0:00:29]} bxc3 {[%emt 0:00:08]} 40. g5 {[%emt 0:00:13]} Rd2 {[%emt 0:04:55]} 41. Rg1 {[%emt 0:00:33]} c2 {[%emt 0:04:55]} 42. Rc1 {[%emt 0:00:06]} Kb4 {[%emt 0:02:38]} 43. g6 {[%emt 0:00:22]} Rh2 {[%emt 0:05:22]} 44. h6 {[%emt 0:00:07]} Kc3 {[%emt 0:00:18]} 45. g7 {[%emt 0:00:09]} 1-0

[Event "7. Arber-Senioren-Cup 2019"]
[Site "Bodenmais"]
[Date "2019.08.04"]
[Round "9.6"]
[White "Neubauer, Jaroslaus"]
[Black "Herbold, Manfred"]
[Result "1/2-1/2"]
[ECO "C40"]
[WhiteElo "2014"]
[BlackElo "2081"]
[Annotator "NA"]
[PlyCount "56"]
[EventDate "2019.07.27"]
[EventType "swiss"]
[EventCountry "GER"]
[SourceTitle "playchess.com"]
[Source "ChessBase"]
[SourceQuality "1"]
[TimeControl "60/7800+30:0"]

1. e4 {[%emt 0:00:00]} e5 {[%emt 0:06:15]} 2. Nf3 {[%emt 0:00:15]} d5 {[%emt 0:00:12]} 3. d4 {[%emt 0:02:02]} dxe4 {[%emt 0:00:18]} 4. Nxe5 {[%emt 0:00:16]} Bd6 {[%emt 0:00:10]} 5. f4 {[%emt 0:03:41]} Bxe5 {[%emt 0:17:03]} 6. fxe5 {[%emt 0:00:55]} Nc6 {[%emt 0:00:20]} 7. c3 {[%emt 0:02:21]} f6 {[%emt 0:05:00]} 8. Bc4 {[%emt 0:03:46]} Qe7 {[%emt 0:00:39]} 9. O-O {[%emt 0:02:12]} f5 {[%emt 0:08:36]} 10. Qb3 {[%emt 0:06:23]} Nh6 {[%emt 0:00:38]} 11. Bxh6 {[%emt 0:00:37]} gxh6 {[%emt 0:00:02]} 12. Na3 {[%emt 0:01:49]} a6 {[%emt 0:05:21]} 13. Qd1 {[%emt 0:04:02]} Qg7 {[%emt 0:00:47]} 14. b4 {[%emt 0:01:51]} Ne7 {[%emt 0:05:26]} 15. Nc2 {[%emt 0:05:22]} Rf8 {[%emt 0:03:21]} 16. Qe2 {[%emt 0:09:21]} Qg6 {[%emt 0:07:03]} 17. Rae1 {[%emt 0:04:03]} b6 {[%emt 0:03:25]} 18. Rf4 {[%emt 0:23:26]} Qg5 {[%emt 0:01:10]} 19. Ref1 {[%emt 0:11:19]} Ng6 {[%emt 0:01:13]} 20. R4f2 {[%emt 0:11:21]} Bb7 {[%emt 0:10:00]} 21. d5 {[%emt 0:01:34]} Nxe5 {[%emt 0:01:37]} 22. Nd4 {[%emt 0:00:43]} Bc8 {[%emt 0:03:36]} 23. Nc6 Nxc6 24. dxc6 a5 25. Qxe4+ fxe4 26. Rxf8+ Ke7 27. R1f7+ Kd6 28. Rf6+ Ke5 1/2-1/2

[Event "7. Arber-Senioren-Cup 2019"]
[Site "Bodenmais"]
[Date "2019.08.04"]
[Round "9.7"]
[White "Kuempers, Ulrich"]
[Black "Peglau, Markus"]
[Result "0-1"]
[ECO "D82"]
[WhiteElo "2030"]
[BlackElo "1849"]
[Annotator "NA"]
[PlyCount "92"]
[EventDate "2019.07.27"]
[EventType "swiss"]
[EventCountry "GER"]
[SourceTitle "playchess.com"]
[Source "ChessBase"]
[SourceQuality "1"]
[TimeControl "60/7800+30:0"]

1. d4 {[%emt 0:00:00]} Nf6 {[%emt 0:00:00]} 2. c4 {[%emt 0:00:00]} g6 {[%emt 0:00:00]} 3. Nc3 {[%emt 0:00:00]} d5 {[%emt 0:00:00]} 4. Bf4 {[%emt 0:00:27]} Bg7 {[%emt 0:00:08]} 5. e3 {[%emt 0:00:17]} c5 {[%emt 0:01:08]} 6. dxc5 {[%emt 0:00:39]} Qa5 {[%emt 0:01:03]} 7. Qa4+ {[%emt 0:01:14]} Qxa4 {[%emt 0:02:40]} 8. Nxa4 {[%emt 0:00:03]} Na6 {[%emt 0:04:01]} 9. cxd5 {[%emt 0:04:15]} Nxd5 {[%emt 0:01:55]} 10. Bxa6 {[%emt 0:03:56]} bxa6 {[%emt 0:00:41]} 11. Ne2 {[%emt 0:32:02]} Bd7 {[%emt 0:07:15]} 12. Nac3 {[%emt 0:05:07]} Nxf4 {[%emt 0:02:45]} 13. exf4 {[%emt 0:07:41]} Rb8 {[%emt 0:06:54]} 14. b3 {[%emt 0:02:56]} O-O {[%emt 0:02:35]} 15. Rc1 {[%emt 0:03:44]} Rfc8 {[%emt 0:19:25]} 16. Nd5 {[%emt 0:01:32]} Kf8 {[%emt 0:06:55]} 17. O-O {[%emt 0:00:35]} Bb2 {[%emt 0:12:26]} 18. Rc2 {[%emt 0:30:28]} Ba3 {[%emt 0:01:15]} 19. b4 {[%emt 0:09:16]} a5 {[%emt 0:06:32]} 20. Nd4 {[%emt 0:00:50]} Ba4 {[%emt 0:06:36]} 21. Rc4 {[%emt 0:07:43]} axb4 {[%emt 0:25:03]} 22. Re1 {[%emt 0:05:45]} Rd8 {[%emt 0:05:45]} 23. Ne3 {[%emt 0:08:28]} Bb2 {[%emt 0:01:28]} 24. Nb3 {[%emt 0:01:38]} Bc3 {[%emt 0:04:45]} 25. Rc1 {[%emt 0:00:56]} Bb5 {[%emt 0:02:00]} 26. R4xc3 {[%emt 0:00:06]} bxc3 {[%emt 0:00:23]} 27. Rxc3 {[%emt 0:00:03]} Rd3 {[%emt 0:03:06]} 28. Rc1 {[%emt 0:00:20]} Ke8 {[%emt 0:02:21]} 29. h3 {[%emt 0:02:19]} Kd7 {[%emt 0:02:09]} 30. c6+ {[%emt 0:01:36]} Kc7 {[%emt 0:02:07]} 31. Nc5 {[%emt 0:01:11]} Rd2 {[%emt 0:06:37]} 32. a4 {[%emt 0:00:13]} Be2 {[%emt 0:00:05]} 33. Ng4 {[%emt 0:02:38]} Rb6 {[%emt 0:02:08]} 34. Ne5 {[%emt 0:00:16]} f6 {[%emt 0:00:39]} 35. a5 {[%emt 0:00:57]} Rb5 {[%emt 0:01:58]} 36. Ne6+ {[%emt 0:01:35]} Kc8 {[%emt 0:00:30]} 37. Nd7 {[%emt 0:00:37]} Rd1+ {[%emt 0:00:27]} 38. Rxd1 {[%emt 0:00:31]} Bxd1 {[%emt 0:00:01]} 39. a6 {[%emt 0:01:33]} Bb3 {[%emt 0:00:46]} 40. Nd4 {[%emt 0:00:14]} Rb4 {[%emt 0:00:25]} 41. Ne2 {[%emt 0:03:36]} Bc4 {[%emt 0:00:24]} 42. Nc3 {[%emt 0:00:30]} Bxa6 {[%emt 0:00:41]} 43. Nd5 {[%emt 0:00:19]} Rb1+ {[%emt 0:00:01]} 44. Kh2 {[%emt 0:00:01]} Re1 45. Nc5 {[%emt 0:00:50]} Bb5 {[%emt 0:01:42]} 46. c7 {[%emt 0:01:39]} Bc6 {[%emt 0:00:42]} 0-1

[Event "7. Arber-Senioren-Cup 2019"]
[Site "Bodenmais"]
[Date "2019.08.04"]
[Round "9.8"]
[White "Puehn, Georg"]
[Black "Korte, Markus"]
[Result "1-0"]
[ECO "C42"]
[WhiteElo "1990"]
[BlackElo "2028"]
[Annotator "NA"]
[PlyCount "57"]
[EventDate "2019.07.27"]
[EventType "swiss"]
[EventCountry "GER"]
[SourceTitle "playchess.com"]
[Source "ChessBase"]
[SourceQuality "1"]
[TimeControl "60/7800+30:0"]

1. e4 {[%emt 0:00:00]} e5 {[%emt 0:00:00]} 2. Nf3 {[%emt 0:00:00]} Nf6 {[%emt 0:00:04]} 3. d3 {[%emt 0:07:17]} Nc6 {[%emt 0:00:44]} 4. Be2 {[%emt 0:00:18]} Bc5 {[%emt 0:00:42]} 5. O-O {[%emt 0:00:33]} h6 {[%emt 0:01:09]} 6. Nxe5 {[%emt 0:07:06]} Nxe5 {[%emt 0:06:06]} 7. d4 {[%emt 0:00:10]} Bb6 {[%emt 0:13:45]} 8. dxe5 {[%emt 0:01:19]} Nxe4 {[%emt 0:00:18]} 9. Nd2 {[%emt 0:12:29]} Nxd2 {[%emt 0:07:47]} 10. Bxd2 {[%emt 0:01:42]} O-O {[%emt 0:01:59]} 11. Bc3 {[%emt 0:03:14]} Qe7 {[%emt 0:07:46]} 12. Bc4 {[%emt 0:14:30]} Rd8 {[%emt 0:02:53]} 13. Qf3 {[%emt 0:01:53]} Bc5 {[%emt 0:10:10]} 14. Rfe1 {[%emt 0:08:56]} Rb8 {[%emt 0:08:12]} 15. a4 {[%emt 0:05:05]} b5 {[%emt 0:01:58]} 16. axb5 {[%emt 0:01:39]} Rb6 {[%emt 0:00:10]} 17. Ra4 {[%emt 0:18:58]} Bb7 {[%emt 0:05:31]} 18. Qf5 {[%emt 0:00:34]} c6 {[%emt 0:07:09]} 19. b4 {[%emt 0:05:32]} Bxf2+ {[%emt 0:05:44]} 20. Qxf2 {[%emt 0:00:43]} cxb5 {[%emt 0:00:09]} 21. Rxa7 {[%emt 0:05:46]} Qg5 {[%emt 0:09:03]} 22. Bf1 {[%emt 0:05:50]} Qg6 {[%emt 0:05:01]} 23. Bd4 {[%emt 0:03:38]} Rc6 {[%emt 0:05:58]} 24. Rxb7 {[%emt 0:01:21]} Rxc2 {[%emt 0:00:25]} 25. Qf3 {[%emt 0:00:49]} Qe6 {[%emt 0:03:10]} 26. Bd3 {[%emt 0:02:49]} Rd2 {[%emt 0:01:07]} 27. Qe4 {[%emt 0:00:33]} g6 {[%emt 0:01:34]} 28. Qe3 {[%emt 0:00:45]} Qa2 {[%emt 0:00:13]} 29. Be4 {[%emt 0:02:09]} 1-0

[Event "7. Arber-Senioren-Cup 2019"]
[Site "Bodenmais"]
[Date "2019.08.04"]
[Round "9.9"]
[White "Schwalb, Manfred"]
[Black "Hamlack, Heinz"]
[Result "0-1"]
[ECO "B01"]
[WhiteElo "1965"]
[BlackElo "1986"]
[Annotator "NA"]
[PlyCount "76"]
[EventDate "2019.07.27"]
[EventType "swiss"]
[EventCountry "GER"]
[SourceTitle "playchess.com"]
[Source "ChessBase"]
[SourceQuality "1"]
[TimeControl "60/7800+30:0"]

1. e4 {[%emt 0:00:00]} d5 {[%emt 0:01:52]} 2. exd5 {[%emt 0:00:00]} Nf6 {[%emt 0:00:04]} 3. d4 {[%emt 0:02:01]} Qxd5 {[%emt 0:00:38]} 4. Nc3 {[%emt 0:01:42]} Qa5 {[%emt 0:00:57]} 5. Nf3 {[%emt 0:01:23]} Bg4 {[%emt 0:01:22]} 6. h3 {[%emt 0:03:56]} Bh5 {[%emt 0:01:27]} 7. g4 {[%emt 0:05:06]} Bg6 {[%emt 0:00:07]} 8. Bg2 {[%emt 0:02:58]} c6 {[%emt 0:00:31]} 9. O-O {[%emt 0:00:28]} e6 {[%emt 0:00:47]} 10. Ne5 {[%emt 0:01:26]} Nbd7 {[%emt 0:04:17]} 11. Nc4 {[%emt 0:09:16]} Qc7 {[%emt 0:06:04]} 12. Ne2 {[%emt 0:07:06]} Nd5 {[%emt 0:01:25]} 13. Ne3 {[%emt 0:00:47]} N7b6 {[%emt 0:05:05]} 14. Nxd5 {[%emt 0:07:07]} cxd5 {[%emt 0:05:32]} 15. c3 {[%emt 0:00:20]} Bd6 {[%emt 0:00:32]} 16. f4 {[%emt 0:06:05]} O-O-O {[%emt 0:00:19]} 17. b3 {[%emt 0:05:27]} Be4 {[%emt 0:02:42]} 18. Bxe4 {[%emt 0:00:57]} dxe4 {[%emt 0:00:03]} 19. c4 {[%emt 0:01:34]} f5 {[%emt 0:00:43]} 20. Be3 {[%emt 0:00:52]} Ba3 {[%emt 0:04:18]} 21. Nc3 {[%emt 0:02:40]} a6 {[%emt 0:06:08]} 22. Qe2 {[%emt 0:00:21]} g5 {[%emt 0:01:29]} 23. gxf5 {[%emt 0:04:50]} exf5 {[%emt 0:00:17]} 24. Rad1 {[%emt 0:03:14]} Rhg8 {[%emt 0:04:53]} 25. Kh1 {[%emt 0:02:04]} g4 {[%emt 0:00:27]} 26. Rg1 {[%emt 0:02:18]} Rd6 {[%emt 0:12:25]} 27. Rg3 {[%emt 0:04:36]} Rh6 {[%emt 0:01:09]} 28. Qf2 {[%emt 0:04:31]} Be7 {[%emt 0:00:54]} 29. c5 {[%emt 0:15:40]} Bh4 {[%emt 0:02:34]} 30. Rdg1 {[%emt 0:02:58]} Bxg3 {[%emt 0:01:27]} 31. Rxg3 {[%emt 0:00:06]} Qc6 {[%emt 0:00:29]} 32. Qg2 {[%emt 0:07:00]} Nd5 {[%emt 0:01:26]} 33. Qd2 {[%emt 0:03:30]} Nxc3 {[%emt 0:00:33]} 34. Qxc3 {[%emt 0:00:20]} Qb5 {[%emt 0:00:41]} 35. Qc4 {[%emt 0:00:48]} Qxc4 {[%emt 0:00:39]} 36. bxc4 {[%emt 0:00:03]} Rxh3+ {[%emt 0:00:08]} 37. Kg2 {[%emt 0:00:18]} Rxg3+ {[%emt 0:00:42]} 38. Kxg3 {[%emt 0:00:02]} Rg6 {[%emt 0:00:06]} 0-1

[Event "7. Arber-Senioren-Cup 2019"]
[Site "Bodenmais"]
[Date "2019.08.04"]
[Round "9.10"]
[White "Steinbach, Peter"]
[Black "Kurka, Dieter"]
[Result "0-1"]
[ECO "B21"]
[WhiteElo "1958"]
[BlackElo "2006"]
[Annotator "NA"]
[PlyCount "103"]
[EventDate "2019.07.27"]
[EventType "swiss"]
[EventCountry "GER"]
[SourceTitle "playchess.com"]
[Source "ChessBase"]
[SourceQuality "1"]
[TimeControl "60/7800+30:0"]

1. e4 {[%emt 0:00:00]} c5 {[%emt 0:00:00]} 2. d4 {[%emt 0:00:00]} cxd4 {[%emt 0:00:00]} 3. c3 {[%emt 0:00:00]} d3 {[%emt 0:00:00]} 4. Bxd3 {[%emt 0:00:02]} e6 {[%emt 0:00:00]} 5. c4 {[%emt 0:00:12]} a6 {[%emt 0:00:01]} 6. Nc3 {[%emt 0:01:44]} Qc7 {[%emt 0:00:09]} 7. Qe2 {[%emt 0:01:50]} d6 {[%emt 0:00:18]} 8. f4 {[%emt 0:01:27]} Nd7 {[%emt 0:01:20]} 9. Nf3 {[%emt 0:00:50]} Ngf6 {[%emt 0:02:13]} 10. O-O {[%emt 0:02:10]} Be7 {[%emt 0:11:08]} 11. Kh1 {[%emt 0:02:44]} O-O {[%emt 0:00:48]} 12. Be3 {[%emt 0:00:13]} b6 {[%emt 0:00:38]} 13. Rac1 {[%emt 0:00:10]} Bb7 {[%emt 0:00:41]} 14. Bg1 {[%emt 0:03:00]} Rfe8 {[%emt 0:07:21]} 15. h3 {[%emt 0:14:26]} Rad8 {[%emt 0:11:05]} 16. g4 {[%emt 0:08:51]} Qb8 {[%emt 0:11:20]} 17. g5 {[%emt 0:02:12]} Nh5 {[%emt 0:00:05]} 18. Bh2 g6 {[%emt 0:02:12]} 19. a3 {[%emt 0:05:45]} Qa8 {[%emt 0:00:08]} 20. b4 {[%emt 0:03:20]} Ng7 21. Rce1 {[%emt 0:05:49]} d5 {[%emt 0:14:46]} 22. cxd5 {[%emt 0:02:34]} exd5 {[%emt 0:00:07]} 23. e5 {[%emt 0:00:05]} Nf8 {[%emt 0:00:14]} 24. Nd4 {[%emt 0:01:36]} Nfe6 {[%emt 0:01:51]} 25. Bg1 {[%emt 0:00:49]} Qc8 {[%emt 0:04:12]} 26. Na4 {[%emt 0:18:08]} Nxd4 {[%emt 0:04:50]} 27. Bxd4 {[%emt 0:00:03]} Qxh3+ {[%emt 0:01:56]} 28. Kg1 {[%emt 0:00:06]} Qg3+ {[%emt 0:00:25]} 29. Kh1 {[%emt 0:00:10]} b5 {[%emt 0:02:04]} 30. Nb2 {[%emt 0:00:21]} Ne6 {[%emt 0:01:26]} 31. Qf2 {[%emt 0:04:05]} Qxf2 {[%emt 0:01:21]} 32. Bxf2 {[%emt 0:00:02]} Nxf4 {[%emt 0:00:27]} 33. Bb6 {[%emt 0:00:05]} Nxd3 {[%emt 0:01:05]} 34. Nxd3 {[%emt 0:00:04]} Rc8 {[%emt 0:01:27]} 35. Nc5 {[%emt 0:00:33]} Bxc5 {[%emt 0:03:49]} 36. Bxc5 {[%emt 0:00:42]} Rc6 {[%emt 0:02:49]} 37. Kg1 {[%emt 0:00:36]} Bc8 {[%emt 0:00:45]} 38. Kf2 {[%emt 0:01:20]} h6 {[%emt 0:10:00]} 39. gxh6 {[%emt 0:01:20]} g5 {[%emt 0:01:19]} 40. Bd6 {[%emt 0:04:19]} Kh7 {[%emt 0:01:22]} 41. Rh1 {[%emt 0:03:11]} Kg6 {[%emt 0:00:23]} 42. h7 {[%emt 0:06:13]} Rh8 {[%emt 0:00:37]} 43. Be7 {[%emt 0:01:26]} g4 {[%emt 0:00:42]} 44. Kg3 {[%emt 0:00:45]} Rxh7 {[%emt 0:00:31]} 45. Rxh7 {[%emt 0:02:32]} Kxh7 {[%emt 0:00:02]} 46. Rd1 {[%emt 0:00:21]} Be6 {[%emt 0:00:25]} 47. Kf4 {[%emt 0:03:40]} Kg6 {[%emt 0:03:44]} 48. Rd3 {[%emt 0:02:43]} Rc4+ {[%emt 0:00:55]} 49. Kg3 {[%emt 0:01:21]} Kf5 {[%emt 0:00:34]} 50. Bf6 {[%emt 0:00:22]} Ke4 {[%emt 0:00:21]} 51. Rb3 {[%emt 0:01:05]} d4 {[%emt 0:00:30]} 52. Kf2 0-1